bitfinex-derivatives/quotes_SOLF0:USTF0_20250425
["timestamp","ask_amount","ask_price","bid_price","bid_amount"]
[1745564648465,24.04,153.69,153.66,6.5048]
[1745564648668,24.04,153.69,153.64,8.02007323]
[1745564648870,6.5045,153.68,153.65,6.5054]
[1745564649674,24.04,153.69,153.64,8.02007323]
[1745564649971,24.04,153.72,153.64,8.02007323]
[1745564650173,6.5033,153.71,153.67,6.5046]
[1745564650370,24.04,153.72,153.67,6.5046]
[1745564650974,6.5037,153.7,153.67,6.5046]
[1745564651571,6.5037,153.7,153.66,14.52497323]
[1745564652173,24.04,153.72,153.66,8.02007323]
[1745564652374,24.04,153.72,153.66,14.52497323]
[1745564652874,24.04,153.72,153.66,8.02007323]
[1745564653069,6.5041,153.69,153.66,8.02007323]
[1745564653373,6.5041,153.69,153.66,14.52487323]
[1745564657579,6.5036,153.7,153.67,6.5046]
[1745564658882,24.04,153.72,153.68,8.02007323]
[1745564659483,6.5033,153.71,153.63,26.0619]
[1745564659783,6.5033,153.71,153.68,8.02007323]
[1745564660183,30.5426,153.72,153.68,8.02007323]
[1745564660383,6.5026,153.72,153.68,8.02007323]
[1745564660682,6.5026,153.72,153.69,6.5037]
[1745564660883,24.04,153.78,153.7,8.02007323]
[1745564661183,24.04,153.78,153.74,8.02007323]
[1745564661585,6.5011,153.76,153.74,8.02007323]
[1745564662483,6.5013,153.75,153.74,8.02007323]
[1745564665684,6.5021,153.73,153.7,8.02007323]
[1745564665988,24.04,153.78,153.7,8.02007323]
[1745564666190,6.501,153.76,153.71,6.5027]
[1745564666387,24.04,153.78,153.7,8.02007323]
[1745564666583,24.04,153.78,153.72,8.02007323]
[1745564667993,6.5018,153.74,153.72,8.02007323]
[1745564668194,24.04,153.78,153.72,8.02007323]
[1745564669094,24.04,153.78,153.72,14.52237323]
[1745564669291,24.04,153.78,153.72,8.02007323]
[1745564670296,6.5011,153.76,153.73,6.502]
[1745564670484,24.04,153.78,153.72,8.02007323]
[1745564671594,6.5012,153.76,153.73,6.5021]
[1745564671789,6.5012,153.76,153.72,8.02007323]
[1745564672093,6.5016,153.75,153.72,14.52237323]
[1745564672794,6.5018,153.74,153.72,8.02007323]
[1745564673497,6.5018,153.74,153.72,14.52257323]
[1745564673795,6.5014,153.75,153.72,14.52257323]
[1745564673992,24.04,153.78,153.72,8.02007323]
[1745564674297,6.5011,153.76,153.72,8.02007323]
[1745564674695,6.5011,153.76,153.73,6.5018]
[1745564675294,6.5011,153.76,153.75,5.11759412]
[1745564675998,6.5007,153.77,153.75,5.11759412]
[1745564677595,5.11759412,153.77,153.73,5.11759412]
[1745564677793,5.11759412,153.75,153.63,1.13202023]
[1745564677998,5.11759412,153.73,153.68,5.11759412]
[1745564678295,23.78,153.72,153.68,5.11759412]
[1745564678497,6.5043,153.68,153.66,5.11759412]
[1745564679201,5.11759412,153.71,153.66,5.11759412]
[1745564679202,6.5047,153.67,153.66,5.11759412]
[1745564679997,5.11759412,153.71,153.66,5.11759412]
[1745564680199,23.78,153.72,153.68,5.11759412]
[1745564680597,23.78,153.72,153.7,5.11759412]
[1745564681093,6.503,153.71,153.7,5.11759412]
[1745564681290,23.78,153.72,153.67,8.00161628]
[1745564681798,6.5037,153.7,153.67,8.00161628]
[1745564682202,23.78,153.72,153.67,8.00161628]
[1745564682899,6.5034,153.71,153.67,14.50601628]
[1745564683195,23.78,153.72,153.67,8.00161628]
[1745564683400,23.78,153.72,153.65,33.69411628]
[1745564683902,6.5041,153.69,153.66,6.5049]
[1745564684300,6.5041,153.69,153.65,33.69411628]
[1745564684502,6.5041,153.69,153.65,38.28691628]
[1745564684702,6.5041,153.69,153.65,14.50691628]
[1745564685000,23.78,153.72,153.65,14.50691628]
[1745564685001,6.5035,153.7,153.65,8.00161628]
[1745564685203,23.78,153.72,153.65,8.00161628]
[1745564685501,6.5034,153.7,153.66,6.5048]
[1745564685801,23.78,153.72,153.65,8.00161628]
[1745564686102,6.5038,153.7,153.66,6.5048]
[1745564686399,23.78,153.72,153.65,8.00161628]
[1745564686601,30.283,153.72,153.68,6.5039]
[1745564687503,6.5031,153.71,153.68,6.5039]
[1745564690504,30.2828,153.72,153.69,6.5037]
[1745564691308,6.503,153.71,153.69,6.5037]
[1745564691508,6.503,153.71,153.67,14.50601628]
[1745564691907,6.503,153.71,153.67,8.00161628]
[1745564692108,6.503,153.71,153.67,14.50611628]
[1745564693109,6.5035,153.7,153.67,14.50611628]
[1745564693310,23.78,153.72,153.67,14.50611628]
[1745564693610,6.5034,153.7,153.67,14.50611628]
[1745564694410,6.5032,153.71,153.67,14.50611628]
[1745564694611,23.78,153.72,153.67,14.50611628]
[1745564695009,23.78,153.72,153.67,8.00161628]
[1745564695213,23.78,153.75,153.69,8.00161628]
[1745564695414,23.78,153.75,153.71,8.00161628]
[1745564695612,6.5022,153.73,153.71,8.00161628]
[1745564697115,6.5026,153.72,153.71,8.00161628]
[1745564700416,6.5034,153.7,153.69,8.00161628]
[1745564701319,6.5034,153.7,153.69,5.11968546]
[1745564701817,23.78,153.75,153.69,5.11968546]
[1745564701818,6.5032,153.71,153.69,5.11968546]
[1745564702021,23.78,153.75,153.7,5.11968546]
[1745564702219,23.78,153.75,153.73,5.11968546]
[1745564702620,6.5017,153.74,153.73,5.11968546]
[1745564703513,468.32,153.79,153.73,5.11968546]
[1745564703719,23.6,153.8,153.77,5.11968546]
[1745564704423,6.5,153.78,153.77,5.11968546]
[1745564705415,6.5,153.78,153.77,9.04862744]
[1745564706221,23.6,153.8,153.77,5.11968546]
[1745564706516,28.71968546,153.83,153.79,5.11968546]
[1745564706722,23.6,153.83,153.79,5.11968546]
[1745564707724,28.71968546,153.83,153.77,5.11968546]
[1745564708619,6.5,153.78,153.77,5.11968546]
[1745564711320,6.4998,153.79,153.77,5.11968546]
[1745564711521,6.4998,153.79,153.78,5.11968546]
[1745564718927,23.58,153.86,153.78,5.11968546]
[1745564719228,23.58,153.86,153.84,5.11968546]
[1745564719526,6.4971,153.85,153.84,5.11968546]
[1745564721123,23.58,153.86,153.84,5.11968546]
[1745564721325,23.58,153.89,153.84,11.61718546]
[1745564721617,23.58,153.89,153.88,5.11968546]
[1745564722329,30.0754,153.89,153.88,5.11968546]
[1745564725124,473.23968546,153.93,153.88,5.11968546]
[1745564725125,23.58,153.92,153.88,5.11968546]
[1745564725327,23.58,153.92,153.9,5.11968546]
[1745564725628,6.4957,153.89,153.88,5.11968546]
[1745564726231,6.4951,153.9,153.88,5.11968546]
[1745564726529,23.58,153.92,153.88,5.11968546]
[1745564727625,23.58,153.95,153.9,5.11968546]
[1745564728529,6.4945,153.91,153.9,5.11968546]
[1745564729131,5.11968546,153.94,153.89,5.11968546]
[1745564729630,6.4953,153.9,153.89,5.11968546]
[1745564730232,5.11968546,153.92,153.88,5.11968546]
[1745564730428,23.58,153.91,153.87,5.11968546]
[1745564730730,6.4958,153.88,153.87,5.11968546]
[1745564731127,23.58,153.91,153.87,5.11968546]
[1745564731330,6.4952,153.9,153.89,5.11968546]
[1745564731531,23.58,153.91,153.89,5.11968546]
[1745564732032,30.0748,153.91,153.89,5.11968546]
[1745564735035,6.4948,153.91,153.89,5.11968546]
[1745564736831,6.4949,153.9,153.89,5.11968546]
[1745564737537,6.4947,153.91,153.89,5.11968546]
[1745564738240,6.4949,153.9,153.89,5.11968546]
[1745564738540,28.65968546,153.94,153.89,5.11968546]
[1745564738839,6.4948,153.91,153.89,5.11968546]
[1745564740942,6.4949,153.9,153.89,5.11968546]
[1745564741149,28.65968546,153.94,153.89,5.11968546]
[1745564741455,6.4948,153.91,153.89,5.11968546]
[1745564742245,6.4948,153.91,153.9,5.11968546]
[1745564744152,23.54,153.94,153.85,3.8288]
[1745564744153,6.495,153.9,153.89,5.11968546]
[1745564744352,5.11968546,153.92,153.87,5.11968546]
[1745564744547,5.11968546,153.89,153.72,20.52483272]
[1745564744751,6.4972,153.85,153.82,6.4981]
[1745564744949,6.4972,153.85,153.83,5.11968546]
[1745564745149,28.65968546,153.89,153.83,5.11968546]
[1745564745351,28.65968546,153.89,153.85,5.11968546]
[1745564745652,28.65968546,153.89,153.87,5.11968546]
[1745564745653,23.54,153.89,153.87,5.11968546]
[1745564745946,6.4956,153.89,153.87,5.11968546]
[1745564746253,23.54,153.92,153.87,5.11968546]
[1745564746857,6.4957,153.89,153.87,5.11968546]
[1745564748056,23.54,153.92,153.87,5.11968546]
[1745564748456,23.54,153.92,153.89,5.11968546]
[1745564749153,6.4949,153.91,153.89,5.11968546]
[1745564749355,23.54,153.92,153.89,5.11968546]
[1745564749655,6.4949,153.9,153.89,5.11968546]
[1745564756654,6.4958,153.88,153.87,5.11968546]
[1745564760064,5.11968546,153.91,153.87,5.11968546]
[1745564760455,6.4966,153.86,153.84,5.11968546]
[1745564760761,23.54,153.88,153.84,5.11968546]
[1745564760958,6.4967,153.86,153.84,5.11968546]
[1745564761357,23.54,153.88,153.84,5.11968546]
[1745564761861,23.54,153.88,153.86,5.11968546]
[1745564762061,23.54,153.91,153.86,5.11968546]
[1745564762260,23.54,153.91,153.88,5.11968546]
[1745564762660,6.4952,153.9,153.88,5.11968546]
[1745564763557,30.0347,153.91,153.88,5.11968546]
[1745564763862,30.0347,153.91,153.89,5.11968546]
[1745564764063,23.54,153.91,153.89,5.11968546]
[1745564764763,6.495,153.9,153.87,5.11968546]
[1745564765061,23.54,153.91,153.89,5.11968546]
[1745564765960,72.92883546,153.93,153.89,5.11968546]
[1745564766259,6.4943,153.92,153.89,11.61488546]
[1745564768765,6.4943,153.92,153.9,3.90263021]
[1745564769165,6.4943,153.92,153.91,3.90263021]
[1745564770666,67.80915,153.93,153.91,9.02231567]
[1745564770865,67.80915,153.93,153.91,5.11968546]
[1745564771067,67.80915,153.93,153.91,11.61408546]
[1745564772768,74.30285,153.93,153.91,5.11968546]
[1745564773267,67.80915,153.93,153.91,11.61418546]
[1745564774270,67.80915,153.93,153.92,6.4941]
[1745564774468,28.55968546,154.0,153.91,5.11968546]
[1745564774769,6.4928,153.95,153.94,5.11968546]
[1745564775769,23.44,154.0,153.93,5.11968546]
[1745564775770,6.4933,153.94,153.93,5.11968546]
[1745564775970,5.11968546,153.97,153.93,5.11968546]
[1745564776170,5.11968546,153.98,153.93,5.11968546]
[1745564776570,6.4931,153.95,153.93,5.11968546]
[1745564777372,28.55968546,153.94,153.85,1.8814]
[1745564777669,5.11968546,153.9,153.86,8.84028546]
[1745564778376,6.4954,153.89,153.86,8.84028546]
[1745564778870,5.11968546,153.92,153.86,8.84028546]
[1745564779062,6.4955,153.89,153.86,8.84028546]
[1745564779575,6.4959,153.88,153.86,8.84028546]
[1745564779867,23.44,153.94,153.86,8.84028546]
[1745564780171,6.4931,153.95,153.92,5.11968546]
[1745564780571,6.4933,153.94,153.92,5.11968546]
[1745564780870,23.44,153.97,153.92,5.11968546]
[1745564781369,5.11968546,153.96,153.9,5.11968546]
[1745564781573,5.11968546,153.92,153.88,5.11968546]
[1745564782272,6.4954,153.89,153.88,5.11968546]
[1745564783175,6.4962,153.87,153.86,5.11968546]
[1745564783371,5.11968546,153.9,153.85,5.11968546]
[1745564783773,6.4959,153.88,153.85,5.11968546]
[1745564783973,6.4959,153.88,153.87,5.11968546]
[1745564785073,6.4965,153.87,153.85,5.11968546]
[1745564785270,23.44,153.89,153.84,5.11968546]
[1745564785470,23.44,153.89,153.86,5.11968546]
[1745564785872,23.44,153.89,153.84,5.11968546]
[1745564786071,5.11968546,153.88,153.82,5.11968546]
[1745564786370,5.11968546,153.88,153.81,1.9496]
[1745564786572,5.11968546,153.86,153.82,5.11968546]
[1745564786772,5.11968546,153.84,153.8,5.11968546]
[1745564786973,28.55968546,153.84,153.8,5.11968546]
[1745564787170,23.44,153.84,153.8,5.11968546]
[1745564787974,23.44,153.84,153.8,11.61888546]
[1745564788173,23.44,153.84,153.75,27.317]
[1745564788174,23.44,153.84,153.82,5.11968546]
[1745564788374,29.9376,153.84,153.82,5.11968546]
[1745564788775,23.44,153.84,153.82,5.11968546]
[1745564789278,23.44,153.84,153.8,6.4989]
[1745564789677,6.4981,153.83,153.8,6.4989]
[1745564789977,6.4981,153.83,153.79,7.98911749]
[1745564790879,6.4981,153.83,153.79,14.48851749]
[1745564791081,6.4984,153.82,153.79,14.48851749]
[1745564791377,6.4984,153.82,153.79,7.98911749]
[1745564791569,6.4984,153.82,153.75,23.44]
[1745564791776,23.44,153.84,153.79,6.4995]
[1745564793271,6.4985,153.82,153.79,6.4995]
[1745564794079,6.4979,153.83,153.8,6.499]
[1745564794682,6.4985,153.82,153.79,6.4995]
[1745564795977,23.44,153.84,153.77,7.98911749]
[1745564796277,23.44,153.84,153.75,31.42911749]
[1745564796477,6.4996,153.8,153.76,6.5006]
[1745564796977,23.44,153.84,153.75,37.93001749]
[1745564797278,23.44,153.84,153.75,31.42911749]
[1745564797979,23.44,153.84,153.76,6.5008]
[1745564798981,23.44,153.84,153.77,6.5004]
[1745564799281,6.4994,153.8,153.77,6.5004]
[1745564799782,23.44,153.84,153.77,7.98911749]
[1745564799981,6.4986,153.82,153.77,7.98911749]
[1745564800275,23.44,153.84,153.79,6.4992]
[1745564800478,6.4981,153.83,153.77,7.98911749]
[1745564800981,23.5,153.89,153.81,7.98911749]
[1745564801182,23.5,153.92,153.86,7.98911749]
[1745564802683,6.4952,153.9,153.86,14.48561749]
[1745564802881,23.5,153.92,153.86,7.98911749]
[1745564804382,6.4957,153.89,153.86,7.98911749]
[1745564804681,23.5,153.92,153.86,7.98911749]
[1745564804885,23.5,153.92,153.84,7.98911749]
[1745564805481,6.4968,153.86,153.84,7.98911749]
[1745564807686,6.4964,153.87,153.84,7.98911749]
[1745564808985,6.4966,153.86,153.84,7.98911749]
[1745564810991,6.4964,153.87,153.84,7.98911749]
[1745564811289,6.4964,153.87,153.86,5.10981396]
[1745564812187,6.4958,153.88,153.86,5.10981396]
[1745564812487,23.5,153.92,153.86,5.10981396]
[1745564812688,23.5,153.92,153.89,5.10981396]
[1745564814090,6.4952,153.9,153.89,5.10981396]
[1745564817900,5.10981396,153.91,153.87,5.10981396]
[1745564818797,6.4958,153.88,153.87,5.10981396]
[1745564818997,5.10981396,153.91,153.85,5.10981396]
[1745564819698,6.497,153.86,153.85,5.10981396]
[1745564820598,23.5,153.92,153.85,5.10981396]
[1745564820902,23.5,153.92,153.88,5.10981396]
[1745564821902,6.4957,153.89,153.88,5.10981396]
[1745564823898,6.4962,153.87,153.86,5.10981396]
[1745564825607,6.496,153.88,153.86,5.10981396]
[1745564825808,5.10981396,153.91,153.82,5.7519]
[1745564825998,6.4962,153.87,153.86,5.10981396]
[1745564826807,23.5,153.92,153.86,5.10981396]
[1745564827001,23.5,153.92,153.88,5.10981396]
[1745564827498,6.4952,153.9,153.88,5.10981396]
[1745564828202,23.5,153.92,153.88,11.60541396]
[1745564828505,23.5,153.92,153.9,5.10981396]
[1745564828706,23.36,153.95,153.9,5.10981396]
[1745564829008,23.36,153.95,153.92,5.10981396]
[1745564830608,6.4937,153.93,153.92,5.10981396]
[1745564831503,23.36,153.95,153.92,5.10981396]
[1745564833008,29.8529,153.95,153.92,5.10981396]
[1745564833308,6.4929,153.95,153.92,5.10981396]
[1745564833604,6.4935,153.94,153.92,5.10981396]
[1745564834211,12.9753,154.08,153.94,6.4931]
[1745564834410,5.10981396,154.01,153.96,5.10981396]
[1745564834710,28.46981396,154.01,153.96,5.10981396]
[1745564834906,6.4918,153.98,153.96,5.10981396]
[1745564836207,5.10981396,153.99,153.94,5.10981396]
[1745564836911,6.4924,153.97,153.94,5.10981396]
[1745564837210,5.10981396,153.99,153.94,5.10981396]
[1745564837510,6.4917,153.98,153.94,11.60271396]
[1745564837914,6.4917,153.98,153.94,5.10981396]
[1745564838212,6.4913,153.99,153.96,5.10981396]
[1745564838512,23.36,154.01,153.96,5.10981396]
[1745564839111,6.4918,153.98,153.96,5.10981396]
[1745564840011,6.492,153.97,153.96,5.10981396]
[1745564841912,6.4918,153.98,153.96,5.10981396]
[1745564844213,23.36,154.01,153.96,11.60211396]
[1745564844413,23.36,154.04,153.99,5.10981396]
[1745564845218,6.49,154.02,153.99,5.10981396]
[1745564845413,2.0173,154.06,153.94,23.36]
[1745564845611,5.10981396,154.06,154.02,5.10981396]
[1745564845811,5.10981396,154.04,154.0,5.10981396]
[1745564846618,6.4896,154.03,154.0,5.10981396]
[1745564847019,5.10981396,154.02,153.97,23.34]
[1745564847214,23.34,154.03,154.0,5.10981396]
[1745564847609,6.4902,154.02,154.0,5.10981396]
[1745564848717,29.8296,154.03,154.0,5.10981396]
[1745564848923,5.10981396,154.05,154.0,5.10981396]
[1745564849321,6.4898,154.03,154.0,5.10981396]
[1745564849822,5.10981396,154.05,154.0,5.10981396]
[1745564850524,6.49,154.02,154.0,5.10981396]
[1745564850922,5.10981396,154.05,153.98,2.0136]
[1745564851228,6.4898,154.03,154.0,5.10981396]
[1745564851420,6.4898,154.03,154.01,5.10981396]
[1745564851724,6.4895,154.03,154.01,5.10981396]
[1745564852025,6.4895,154.03,154.02,5.10981396]
[1745564853124,6.4902,154.02,153.98,8.505]
[1745564853321,28.44981396,154.06,154.01,5.10981396]
[1745564853521,23.34,154.06,154.03,5.10981396]
[1745564853722,28.44981396,154.06,154.01,5.10981396]
[1745564854528,6.4896,154.03,154.01,5.10981396]
[1745564855726,28.44981396,154.06,154.01,5.10981396]
[1745564856026,5.10981396,154.05,154.01,5.10981396]
[1745564856427,6.4903,154.02,154.01,5.10981396]
[1745564856629,5.10981396,154.05,154.0,5.10981396]
[1745564857030,23.34,154.06,153.98,2.0136]
[1745564857031,5.10981396,154.04,153.99,5.10981396]
[1745564857326,28.44981396,154.06,154.01,5.10981396]
[1745564859332,6.4892,154.04,154.01,5.10981396]
[1745564859831,6.4888,154.05,154.01,5.10981396]
[1745564860033,23.34,154.06,154.01,5.10981396]
[1745564860632,23.34,154.06,154.02,5.10981396]
[1745564861533,29.8284,154.06,154.02,11.59941396]
[1745564862433,29.8284,154.06,154.04,5.10981396]
[1745564863029,28.44981396,154.06,154.02,5.10981396]
[1745564863236,23.34,154.06,154.02,5.10981396]
[1745564863735,6.4889,154.05,154.02,5.10981396]
[1745564864034,23.34,154.06,154.04,5.10981396]
[1745564864236,23.34,154.06,154.03,5.10981396]
[1745564864534,6.4887,154.05,154.03,5.10981396]
[1745564864735,23.34,154.06,154.03,5.10981396]
[1745564864925,29.8286,154.06,154.04,5.10981396]
[1745564865134,23.34,154.06,154.04,5.10981396]
[1745564865535,6.4886,154.05,154.04,5.10981396]
[1745564865831,23.34,154.06,154.04,5.10981396]
[1745564866135,29.8286,154.06,154.04,5.10981396]
[1745564866737,6.4886,154.05,154.04,5.10981396]
[1745564867438,6.4886,154.05,154.03,5.10981396]
[1745564868339,6.489,154.04,154.03,5.10981396]
[1745564868642,23.34,154.06,154.02,5.10981396]
[1745564870039,6.4895,154.03,154.02,5.10981396]
[1745564871540,23.34,154.06,154.0,5.10981396]
[1745564871740,5.10981396,154.05,154.0,5.10981396]
[1745564872440,6.4903,154.01,154.0,5.10981396]
[1745564873340,6.4901,154.02,154.0,5.10981396]
[1745564873741,5.10981396,154.05,154.0,5.10981396]
[1745564875439,23.34,154.06,154.02,5.10981396]
[1745564875739,6.4889,154.05,154.02,5.10981396]
[1745564875939,23.34,154.06,154.02,5.10981396]
[1745564876235,6.4887,154.05,154.02,5.10981396]
[1745564876440,23.34,154.06,154.02,5.10981396]
[1745564878042,23.34,154.06,154.04,5.10981396]
[1745564879248,6.4886,154.05,154.04,5.10981396]
[1745564880145,29.8284,154.06,154.04,5.10981396]
[1745564880448,23.34,154.06,154.04,5.10981396]
[1745564880944,28.56981396,154.09,154.04,5.10981396]
[1745564881243,6.4882,154.06,154.04,5.10981396]
[1745564881843,28.56981396,154.09,154.04,5.10981396]
[1745564882043,5.10981396,154.07,154.04,5.10981396]
[1745564883542,5.10981396,154.06,154.01,5.10981396]
[1745564883747,5.10981396,154.06,154.0,5.10981396]
[1745564884258,5.10981396,154.06,154.0,11.60051396]
[1745564884750,6.4899,154.02,154.0,5.10981396]
[1745564884944,5.10981396,154.04,154.0,5.10981396]
[1745564885345,23.46,154.05,154.0,5.10981396]
[1745564885346,6.4902,154.02,154.0,5.10981396]
[1745564886344,6.4903,154.01,154.0,5.10981396]
[1745564886549,5.10981396,154.04,153.98,7.12341396]
[1745564887350,6.4908,154.0,153.98,7.12341396]
[1745564887550,6.4908,154.0,153.98,5.10981396]
[1745564887944,5.10981396,154.02,153.98,5.10981396]
[1745564888650,5.10981396,154.0,153.96,5.10981396]
[1745564889047,23.68,154.01,153.96,5.10981396]
[1745564889248,30.1706,154.01,153.97,6.4917]
[1745564889448,28.78981396,154.04,153.98,5.10981396]
[1745564889851,6.4902,154.02,153.98,5.10981396]
[1745564890345,6.4903,154.01,153.98,11.60131396]
[1745564890547,28.78981396,154.04,153.98,11.60131396]
[1745564890841,28.78981396,154.04,153.98,5.10981396]
[1745564891043,28.78981396,154.04,153.98,11.60131396]
[1745564891252,5.10981396,154.02,153.98,5.10981396]
[1745564891551,6.4905,154.01,153.98,5.10981396]
[1745564891952,5.10981396,154.02,153.96,5.10981396]
[1745564892252,6.4915,153.99,153.96,5.10981396]
[1745564892851,5.10981396,154.0,153.95,21.54525396]
[1745564893353,11.60071396,154.0,153.96,6.4922]
[1745564894751,6.4909,154.0,153.96,6.4922]
[1745564895052,11.60071396,154.0,153.97,6.4919]
[1745564895253,11.60071396,154.0,153.95,21.54525396]
[1745564895454,11.60071396,154.0,153.96,6.4921]
[1745564897157,6.4913,153.99,153.95,28.03775396]
[1745564897352,5.10981396,153.98,153.95,16.43544]
[1745564897953,11.60161396,153.98,153.95,16.43544]
[1745564898258,5.10981396,153.98,153.95,16.43544]
[1745564900258,6.492,153.97,153.95,16.43544]
[1745564900856,6.4924,153.96,153.95,16.43544]
[1745564901356,6.4921,153.97,153.95,16.43544]
[1745564902762,6.4924,153.96,153.95,16.43544]
[1745564903559,11.60221396,153.96,153.95,16.43544]
[1745564903961,28.78981396,153.96,153.8,362.49929012]
[1745564904165,5.10981396,153.9,153.86,6.4963]
[1745564904458,28.78981396,153.9,153.86,6.4963]
[1745564905165,28.78981396,153.9,153.85,15.50551396]
[1745564905362,35.28481396,153.9,153.85,15.50551396]
[1745564905966,6.4954,153.89,153.85,15.50551396]
[1745564906568,5.10981396,153.86,153.73,467.48]
[1745564906872,5.10981396,153.84,153.78,5.10981396]
[1745564907062,23.7,153.83,153.8,5.10981396]
[1745564907262,30.1983,153.83,153.8,5.10981396]
[1745564907561,23.7,153.83,153.79,5.10981396]
[1745564907759,30.198,153.83,153.79,5.10981396]
[1745564908367,23.7,153.83,153.79,5.10981396]
[1745564909268,30.198,153.83,153.79,5.10981396]
[1745564910571,472.66981396,153.86,153.81,5.10981396]
[1745564910768,23.7,153.85,153.83,5.10981396]
[1745564913279,23.7,153.85,153.83,11.60771396]
[1745564913774,23.7,153.85,153.83,5.10981396]
[1745564915473,6.4979,153.83,153.78,13.07485]
[1745564915672,28.80981396,153.85,153.79,5.10981396]
[1745564915873,28.80981396,153.85,153.81,5.10981396]
[1745564916172,35.30691396,153.85,153.81,11.60821396]
[1745564916874,23.7,153.85,153.82,6.4982]
[1745564917069,23.7,153.85,153.81,5.10981396]
[1745564917377,23.7,153.85,153.81,11.60821396]
[1745564917575,30.1971,153.85,153.81,11.60821396]
[1745564918476,23.7,153.85,153.81,5.10981396]
[1745564918679,23.7,153.85,153.83,5.10981396]
[1745564922776,6.497,153.86,153.83,5.10981396]
[1745564923080,30.117,153.86,153.83,5.10981396]
[1745564924184,30.117,153.86,153.83,11.60761396]
[1745564924381,23.62,153.86,153.83,11.60761396]
[1745564924886,23.62,153.86,153.84,6.4974]
[1745564925087,23.62,153.86,153.85,5.10981396]
[1745564927386,30.1166,153.86,153.85,5.10981396]
[1745564927878,23.62,153.86,153.85,5.10981396]
[1745564928688,23.62,153.86,153.85,11.60691396]
[1745564929085,23.62,153.86,153.85,5.10981396]
[1745564929387,23.62,153.86,153.84,5.10981396]
[1745564929593,6.4971,153.85,153.82,11.60801396]
[1745564929889,6.4971,153.85,153.82,5.10981396]
[1745564930791,6.4975,153.84,153.82,5.10981396]
[1745564931591,6.4973,153.85,153.82,5.10981396]
[1745564931889,23.62,153.86,153.82,5.10981396]
[1745564932485,23.62,153.86,153.84,5.10981396]
[1745564932686,23.62,153.88,153.84,5.10981396]
[1745564933188,23.62,153.88,153.86,6.4966]
[1745564933391,23.62,153.88,153.86,5.10981396]
[1745564934295,23.62,153.88,153.87,6.4962]
[1745564941292,5.10981396,153.92,153.88,6.4957]
[1745564941293,23.62,153.91,153.88,6.4957]
[1745564941895,6.495,153.9,153.88,6.4957]
[1745564942198,6.495,153.9,153.87,6.4961]
[1745564944796,30.1147,153.91,153.87,6.4961]
[1745564944999,30.1147,153.91,153.88,6.4957]
[1745564945294,23.62,153.91,153.88,5.10981396]
[1745564945797,23.62,153.91,153.89,6.4951]
[1745564945998,23.62,153.91,153.84,23.62]
[1745564945999,23.62,153.91,153.9,5.10981396]
[1745564946194,467.84,153.93,153.9,11.60441396]
[1745564946800,6.4938,153.93,153.9,11.60441396]
[1745564947300,6.4941,153.92,153.9,11.60441396]
[1745564947494,6.4941,153.92,153.9,5.10981396]
[1745564948703,6.4939,153.93,153.9,11.60471396]
[1745564949100,5.10981396,153.92,153.86,5.10981396]
[1745564949400,5.10981396,153.92,153.86,11.60611396]
[1745564949803,6.4956,153.89,153.86,11.60611396]
[1745564952203,29.8951,153.9,153.87,6.4962]
[1745564952404,23.4,153.9,153.88,5.10981396]
[1745564953404,29.895,153.9,153.87,5.10981396]
[1745564953595,23.4,153.9,153.86,5.10981396]
[1745564953903,29.8951,153.9,153.87,6.496]
[1745564954204,23.4,153.9,153.87,6.496]
[1745564954505,6.4958,153.88,153.86,11.60631396]
[1745564954805,23.4,153.9,153.86,11.60631396]
[1745564955002,23.4,153.9,153.83,11.60751396]
[1745564955003,6.4968,153.86,153.83,11.60751396]
[1745564957109,6.4968,153.86,153.83,6.4977]
[1745564957507,28.50981396,153.86,153.81,8.96741396]
[1745564957710,5.10981396,153.85,153.81,8.96741396]
[1745564958010,6.4978,153.84,153.81,6.4985]
[1745564958412,6.4978,153.84,153.8,5.10981396]
[1745564958613,11.60691396,153.85,153.82,6.4983]
[1745564958809,28.50981396,153.86,153.81,5.10981396]
[1745564959117,6.4972,153.85,153.82,6.4983]